fUSD/lending_fUSD_20260126
["ID","MTS","AMOUNT","RATE_DAILY","PERIOD"]
[403651443,1769448197560,-1847.55,0.00043418,120]
[403651444,1769448197627,-1847.55,0.00043418,120]
[403651445,1769448197692,-1847.55,0.00043418,120]
[403651446,1769448197760,-1847.55,0.00043418,120]
[403651447,1769448197825,-1847.55,0.00043418,120]
[403651448,1769448197890,-1847.55,0.00043418,120]
[403651449,1769448197955,-1847.55,0.00043418,120]
[403651450,1769448198020,-1847.55,0.00043418,120]
[403651451,1769448198084,-1847.55,0.00043418,120]
[403651452,1769448198147,-1847.55,0.00043418,120]
[403651453,1769448198208,-1847.55,0.00043418,120]
[403651454,1769448198272,-1847.55,0.00043418,120]
[403651455,1769448198334,-1847.55,0.00043418,120]
[403651456,1769448198395,-11823.39,0.00043418,120]
[403651457,1769448198457,-11823.39,0.00043418,120]
[403651458,1769448198519,-11823.39,0.00043418,120]
[403651459,1769448198583,-11823.39,0.00043418,120]
[403651460,1769448198647,-11823.39,0.00043418,120]
[403651461,1769448198709,-11823.39,0.00043418,120]
[403651462,1769448198774,-11823.39,0.00043418,120]
[403651463,1769448198838,-11823.39,0.00043418,120]
[403651464,1769448198901,-11823.39,0.00043418,120]
[403651465,1769448198964,-11823.39,0.00043418,120]
[403651466,1769448199027,-11823.39,0.00043418,120]
[403651467,1769448199088,-11823.39,0.00043418,120]
[403651468,1769448199150,-11823.39,0.00043418,120]
[403651469,1769448199212,-11823.39,0.00043418,120]
[403651470,1769448199274,-11823.39,0.00043418,120]
[403651471,1769448199338,-11823.39,0.00043418,120]
[403651472,1769448199402,-11823.39,0.00043418,120]
[403651473,1769448199466,-11823.39,0.00043418,120]
[403651474,1769448199532,-11823.39,0.00043418,120]
[403651475,1769448199599,-11823.39,0.00043418,120]
[403651476,1769448199664,-11823.39,0.00043418,120]
[403651477,1769448199730,-11823.39,0.00043418,120]
[403651478,1769448199795,-11823.39,0.00043418,120]
[403651479,1769448199859,-11823.48,0.00043418,120]
[403651480,1769448199924,-5594.22,0.00043418,120]
[403651481,1769448199993,-5594.22,0.00043418,120]
[403651482,1769448200059,-5594.22,0.00043418,120]
[403651483,1769448200122,-5594.22,0.00043418,120]
[403651484,1769448200185,-5594.22,0.00043418,120]
[403651485,1769448200249,-5594.22,0.00043418,120]
[403651486,1769448200313,-5594.22,0.00043418,120]
[403651487,1769448200376,-5594.22,0.00043418,120]
[403651488,1769448200438,-5594.22,0.00043418,120]
[403651489,1769448200502,-5594.22,0.00043418,120]
[403651490,1769448200566,-5594.22,0.00043418,120]
[403651491,1769448200632,-5594.22,0.00043418,120]
[403651492,1769448200697,-5594.22,0.00043418,120]
[403651493,1769448200762,-5594.22,0.00043418,120]
[403651494,1769448200832,-5594.22,0.00043418,120]
[403651495,1769448200900,-5594.22,0.00043418,120]
[403651496,1769448200968,-5594.22,0.00043418,120]
[403651497,1769448201035,-5594.22,0.00043418,120]
[403651498,1769448201101,-5594.22,0.00043418,120]
[403651499,1769448201166,-5594.22,0.00043418,120]
[403651500,1769448201230,-5594.22,0.00043418,120]
[403651501,1769448201292,-5594.22,0.00043418,120]
[403651502,1769448201356,-5594.22,0.00043418,120]
[403651503,1769448201419,-5594.32,0.00043418,120]
[403651504,1769448201482,-1455.35,0.00043418,120]
[403651505,1769448201552,-1455.35,0.00043418,120]
[403651506,1769448201847,-1455.35,0.00043418,120]
[403651507,1769448201916,-1455.35,0.00043418,120]
[403651508,1769448201983,-1455.35,0.00043418,120]
[403651509,1769448202053,-1455.35,0.00043418,120]
[403651510,1769448202119,-1455.35,0.00043418,120]
[403651511,1769448202185,-1455.35,0.00043418,120]
[403651512,1769448202251,-1455.35,0.00043418,120]
[403651513,1769448202315,-1455.35,0.00043418,120]
[403651514,1769448202382,-1455.35,0.00043418,120]
[403651515,1769448202449,-1455.35,0.00043418,120]
[403651516,1769448202516,-1455.35,0.00043418,120]
[403651517,1769448202588,-1455.35,0.00043418,120]
[403651518,1769448202665,-1455.35,0.00043418,120]
[403651519,1769448202735,-1455.35,0.00043418,120]
[403651520,1769448202804,-1455.35,0.00043418,120]
[403651521,1769448202873,-1455.35,0.00043418,120]
[403651522,1769448202943,-1455.35,0.00043418,120]
[403651523,1769448203013,-1455.35,0.00043418,120]
[403651524,1769448203086,-1455.35,0.00043418,120]
[403651525,1769448203160,-1455.35,0.00043418,120]
[403651526,1769448203238,-1455.35,0.00043418,120]
[403651527,1769448203308,-1455.48665397,0.00043418,120]
[403651528,1769448203378,-3653.05,0.00043418,120]
[403651529,1769448203446,-3653.05,0.00043418,120]
[403651530,1769448203516,-3653.05,0.00043418,120]
[403651531,1769448203585,-3653.05,0.00043418,120]
[403651532,1769448203655,-3653.05,0.00043418,120]
[403651533,1769448203728,-3653.05,0.00043418,120]
[403651534,1769448203799,-3653.05,0.00043418,120]
[403651535,1769448203869,-3653.05,0.00043418,120]
[403651536,1769448203937,-3653.05,0.00043418,120]
[403651537,1769448204008,-3653.05,0.00043418,120]
[403651538,1769448204085,-3653.05,0.00043418,120]
[403651539,1769448204157,-3653.05,0.00043418,120]
[403651540,1769448204228,-3653.05,0.00043418,120]
[403651541,1769448204294,-3653.05,0.00043418,120]
[403651542,1769448204360,-3653.05,0.00043418,120]
[403651543,1769448204426,-3653.05,0.00043418,120]
[403651544,1769448204494,-3653.05,0.00043418,120]
[403651545,1769448204563,-3653.05,0.00043418,120]
[403651546,1769448204630,-3653.05,0.00043418,120]
[403651547,1769448204698,-3653.05,0.00043418,120]
[403651548,1769448204767,-3653.05,0.00043418,120]
[403651549,1769448204835,-3653.05,0.00043418,120]
[403651550,1769448204901,-3653.05,0.00043418,120]
[403651551,1769448204970,-3653.05,0.00043418,120]
[403651552,1769448205037,-6015.06,0.00043418,120]
[403651553,1769448205106,-6015.06,0.00043418,120]
[403651554,1769448205170,-6015.06,0.00043418,120]
[403651555,1769448205235,-6015.06,0.00043418,120]
[403651556,1769448205299,-6015.06,0.00043418,120]
[403651557,1769448205369,-6015.06,0.00043418,120]
[403651558,1769448205437,-6015.06,0.00043418,120]
[403651559,1769448205504,-6015.06,0.00043418,120]
[403651560,1769448205575,-6015.06,0.00043418,120]
[403651561,1769448205643,-6015.06,0.00043418,120]
[403651562,1769448205711,-6015.06,0.00043418,120]
[403651563,1769448205780,-6015.06,0.00043418,120]
[403651564,1769448205847,-6015.06,0.00043418,120]
[403651565,1769448205915,-6015.06,0.00043418,120]
[403651566,1769448205984,-6015.06,0.00043418,120]
[403651567,1769448206053,-6015.06,0.00043418,120]
[403651568,1769448206119,-6015.06,0.00043418,120]
[403651569,1769448206188,-6015.06,0.00043418,120]
[403651570,1769448206256,-6015.06,0.00043418,120]
[403651571,1769448206322,-6015.06,0.00043418,120]
[403651572,1769448206390,-6015.06,0.00043418,120]
[403651573,1769448206458,-6015.06,0.00043418,120]
[403651574,1769448206528,-6015.06,0.00043418,120]
[403651575,1769448206597,-6015.22144316,0.00043418,120]
[403651576,1769448206670,-3109.21,0.00043418,120]
[403651577,1769448206742,-3109.21,0.00043418,120]
[403651578,1769448206811,-3109.21,0.00043418,120]
[403651579,1769448206879,-3109.21,0.00043418,120]
[403651580,1769448206952,-3109.21,0.00043418,120]
[403651581,1769448207021,-3109.21,0.00043418,120]
[403651582,1769448207091,-3109.21,0.00043418,120]
[403651583,1769448207160,-3109.21,0.00043418,120]
[403651584,1769448207231,-3109.21,0.00043418,120]
[403651585,1769448207299,-3109.21,0.00043418,120]
[403651586,1769448207581,-3109.21,0.00043418,120]
[403651587,1769448207650,-3109.21,0.00043418,120]
[403651588,1769448207720,-3109.21,0.00043418,120]
[403651589,1769448207789,-3109.21,0.00043418,120]
[403651590,1769448207857,-3109.21,0.00043418,120]
[403651591,1769448207928,-414.54769317,0.00043418,120]
[403651592,1769448216322,626.90314504,0.0001472,2]
[403651593,1769448216354,-151.0,0.00016176,2]
[403651594,1769448216376,-21.35234732,0.00016185,2]
[403651595,1769448225511,229.393993,7.945e-05,2]
[403651596,1769448228294,300.0,0.00011333,2]
[403651597,1769448228495,195.0,0.0001407,2]
[403651598,1769448228565,217.0,7.945e-05,2]
[403651599,1769448228868,250.0,8.74e-05,2]
[403651600,1769448237357,-323.63595525,0.0001542,2]
[403651601,1769448237386,-448.16559277,0.0001542,2]
[403651602,1769448237414,-151.0,0.00015939,2]
[403651603,1769448237442,-151.0,0.00015939,2]
[403651604,1769448237471,-151.0,0.00015945,2]
[403651605,1769448237498,-151.0,0.00015951,2]
[403651606,1769448237525,-250.0,0.00016192,2]
[403651607,1769448237554,-300.0,0.00016192,2]
[403651608,1769448237589,-500.0,0.00016249,2]
[403651609,1769448237622,-798.0,0.00016438,2]
[403651610,1769448237653,-300.0,0.00016786,2]
[403651611,1769448237683,-1200.0,0.00016786,2]
[403651612,1769448238192,-151.0,0.00015952,2]
[403651613,1769448238221,-1000.0,0.00016787,2]
[403651614,1769448238248,-3770.3484,0.00016787,2]
[403651615,1769448238295,-2500.0,0.00016787,2]
[403651616,1769448238322,-1155.219034,0.00016802,2]
[403651617,1769448238390,-2689.571932,0.00016802,2]
[403651618,1769448238417,-383.65677568,0.00016886,2]
[403651619,1769448238444,-262.14784922,0.00016886,2]
[403651620,1769448238472,-216.85110539,0.00016886,2]
[403651621,1769448238502,-234.74102773,0.00016886,2]
[403651622,1769448238530,-214.53807501,0.00016886,2]
[403651623,1769448238560,-500.0,0.00016886,2]
[403651624,1769448238596,-496.99646994,0.00016886,2]
[403651625,1769448238642,-3.00353006,0.00016886,2]
[403651626,1769448238679,-500.0,0.00016886,2]
[403651627,1769448238710,-500.0,0.00016886,2]
[403651628,1769448238739,-500.0,0.00016886,2]
[403651629,1769448238770,-500.0,0.00016886,2]
[403651630,1769448238800,-500.0,0.00016886,2]
[403651631,1769448238831,-500.0,0.00016886,2]
[403651632,1769448238862,-500.0,0.00016886,2]
[403651633,1769448238892,-500.0,0.00016886,2]
[403651634,1769448238922,-500.0,0.00016886,2]
[403651635,1769448238952,-494.00293988,0.00016886,2]
[403651636,1769448239004,-5.99706012,0.00016886,2]
[403651637,1769448239034,-500.0,0.00016886,2]
[403651638,1769448239065,-191.00578407,0.00016886,2]
[403651639,1769448239095,-500.0,0.00016886,2]
[403651640,1769448239125,-500.0,0.00016886,2]
[403651641,1769448239152,-200.0,0.00016887,2]
[403651642,1769448243714,-151.0,0.0001572,2]
[403651643,1769448243738,-151.0,0.0001572,2]
[403651644,1769448243762,-69.38599981,0.0001572,2]
[403651645,1769448246433,-61.27684873,0.0001572,2]
[403651646,1769448246451,-20.33715146,0.0001572,2]
[403651647,1769448246460,-151.0,0.0001572,2]
[403651648,1769448246469,-151.0,0.0001572,2]
[403651649,1769448246479,-151.0,0.0001572,2]
[403651650,1769448246488,-26.66284854,0.0001572,2]
[403651651,1769448246524,-124.33715146,0.0001572,2]
[403651652,1769448246534,-290.67748975,0.0001572,2]
[403651653,1769448246543,-84.98535879,0.00016804,2]
[403651654,1769448246557,-453.01464121,0.00016804,2]
[403651655,1769448246567,-46.98535879,0.00016886,2]
[403651656,1769448246589,-5.99706012,0.00016886,2]
[403651657,1769448246607,-447.01758109,0.00016886,2]
[403651658,1769448246619,-52.98241891,0.00016886,2]
[403651659,1769448246632,-191.00578407,0.00016886,2]
[403651660,1769448246646,-152.28788438,0.00016886,2]
[403651661,1769448246656,-347.71211562,0.00016886,2]
[403651662,1769448246670,-152.28788438,0.00016886,2]
[403651663,1769448246679,-347.71211562,0.00016886,2]
[403651664,1769448246696,-152.28788438,0.00016886,2]
[403651665,1769448246706,-47.71211562,0.00016886,2]
[403651666,1769448246720,-452.28788438,0.00016886,2]
[403651667,1769448246729,-500.0,0.00016886,2]
[403651668,1769448246738,-500.0,0.00016886,2]
[403651669,1769448246747,-500.0,0.00016886,2]
[403651670,1769448246757,-500.0,0.00016886,2]
[403651671,1769448246766,-3753.71642724,0.00016887,2]
[403651672,1769448246780,-10000.01,0.00016887,2]
[403651673,1769448246794,-10000.01,0.00016887,2]
[403651674,1769448246807,-10000.01,0.00016887,2]
[403651675,1769448246825,-10000.01,0.00016887,2]
[403651676,1769448247870,-195.0,0.00015853,2]
[403651677,1769448248036,-256.57295727,0.00016887,2]
[403651678,1769448248387,-9610.01,0.00016887,2]
[403651679,1769448248408,-10000.01,0.00016887,2]
[403651680,1769448248504,-10000.01,0.00016887,2]
[403651681,1769448248519,-10000.01,0.00016887,2]
[403651682,1769448248535,-10000.01,0.00016887,2]
[403651683,1769448248580,-10000.01,0.00016887,2]
[403651684,1769448248628,-10000.01,0.00016887,2]
[403651685,1769448248757,-10000.01,0.00016887,2]
[403651686,1769448248785,-10000.01,0.00016887,2]
[403651687,1769448250101,-151.0,0.00015988,2]
[403651688,1769448250125,-108.49426084,0.00016887,2]
[403651689,1769448252941,-300.0,0.00016887,2]
[403651690,1769448254543,-162.54678208,0.00016887,2]
[403651691,1769448256694,-300.0,0.00016887,2]
[403651692,1769448264619,-287.45321792,0.00016887,2]
[403651693,1769448270216,-151.0,0.00015976,2]
[403651694,1769448270238,-97.356892,0.00016869,2]
[403651695,1769448271726,-86.593108,0.00016869,2]
[403651696,1769448271748,-208.57954353,0.00016886,5]
[403651697,1769448276623,-250.0,0.00016886,5]
[403651698,1769448279125,-474.82811709,0.00016886,5]
[403651699,1769448285179,-151.0,0.00015971,2]
[403651700,1769448285200,-258.01146475,0.00016787,2]
[403651701,1769448288557,-579.65078794,0.00016787,2]
[403651702,1769448292226,-33.31154731,0.00016787,2]
[403651703,1769448292255,-122.99477604,0.00016886,5]
[403651704,1769448293718,-130.89699169,0.00016886,5]
[403651705,1769448293741,-43.72219972,0.00016886,2]
[403651706,1769448295715,-254.84613125,0.00016886,2]
[403651707,1769448300520,-151.0,0.00015967,2]
[403651708,1769448300542,-63.49285172,0.00016801,2]
[403651709,1769448302469,-181.02408452,0.00016801,2]
[403651710,1769448310322,-61.04170676,0.00016801,2]
[403651711,1769448310349,-146.05176999,0.00016886,2]
[403651712,1769448312711,-154.97974583,0.00016856,2]
[403651713,1769448314870,-200.15428726,0.00016856,2]
[403651714,1769448316391,-151.0,0.00015987,2]
[403651715,1769448316417,-209.95543235,0.00016856,2]
[403651716,1769448318969,-272.06885572,0.00016856,2]
[403651717,1769448321008,-390.58803314,0.00016856,2]
[403651718,1769448324990,-205.6850994,0.00016856,2]
[403651719,1769448325013,-161.20317587,0.00016877,2]
[403651720,1769448327184,-158.98184327,0.00016877,2]
[403651721,1769448334620,-151.0,0.00015981,2]
[403651722,1769448334645,-231.19952246,0.00016877,2]
[403651723,1769448342526,-242.48663876,0.00016877,2]
[403651724,1769448347437,-307.99529683,0.00016877,2]
[403651725,1769448349583,-248.29253719,0.00016005,2]
[403651726,1769448353388,-32.35746281,0.00016005,2]
[403651727,1769448353412,-118.90729526,0.00016877,2]
[403651728,1769448356555,-152.45827984,0.00016877,2]
[403651729,1769448360631,922.75898298,8e-05,2]
[403651730,1769448361372,-264.57217745,0.00016877,2]
[403651731,1769448363925,-273.72106664,0.00016877,2]
[403651732,1769448368531,-298.68893913,0.00016877,2]
[403651733,1769448374260,-446.64785053,0.00016877,2]
[403651734,1769448384768,-252.52941249,0.00016877,2]
[403651735,1769448388627,-265.20770058,0.00016877,2]
[403651736,1769448390069,-310.81276957,0.00016877,2]
[403651737,1769448392746,-380.0870979,0.00016856,2]
[403651738,1769448397541,-158.02750645,0.00016856,2]
[403651739,1769448399386,-226.42925516,0.00016767,2]
[403651740,1769448404909,-209.21893678,0.00016767,2]
[403651741,1769448408721,-323.09153608,0.00016767,2]
[403651742,1769448413615,-301.39262182,0.00016767,2]
[403651743,1769448420150,-255.69688058,0.00016767,2]
[403651744,1769448423774,-300.0,0.00016766,2]
[403651745,1769448423807,-84.73989916,0.00016767,2]
[403651746,1769448431418,-203.33800107,0.00016767,2]
[403651747,1769448437740,-352.02823215,0.00016767,2]
[403651748,1769448440315,-244.30311942,0.00016767,2]
[403651749,1769448445363,-222.53705238,0.00016737,2]
[403651750,1769448445390,-23.46294762,0.00016767,2]
[403651751,1769448448629,-496.81015852,0.00016767,2]
[403651752,1769448452481,-252.71493326,0.00016767,2]
[403651753,1769448454646,-170.11123983,0.00016767,2]
[403651754,1769448462463,-261.82877394,0.00016767,2]
[403651755,1769448465300,-332.49536576,0.00016767,2]
[403651756,1769448466830,-185.56695713,0.00016767,2]
[403651757,1769448468984,-182.45321182,0.00016767,2]
[403651758,1769448470526,-456.1477153,0.00016767,2]
[403651759,1769448472671,-266.73857501,0.00016767,2]
[403651760,1769448477884,-284.81411226,0.00016767,2]
[403651761,1769448480663,-305.4479027,0.00016767,2]
[403651762,1769448484847,-236.90060527,0.00016767,2]
[403651763,1769448487118,-335.85944691,0.00016767,2]
[403651764,1769448488634,-276.95846356,0.00016767,2]
[403651766,1769448494152,-223.04153644,0.00016767,2]
[403651767,1769448495621,-336.5894704,0.00016767,2]
[403651768,1769448500727,-461.77467345,0.00016767,2]
[403651769,1769448502768,-164.736033,0.00016767,2]
[403651770,1769448504922,-227.3714,0.00016767,2]
[403651771,1769448509064,-217.98954807,0.00016767,2]
[403651772,1769448510663,-273.73944613,0.00016767,2]
[403651773,1769448512571,-209.41185094,0.00016767,2]
[403651774,1769448516730,-377.55361615,0.00016767,2]
[403651775,1769448519227,-263.90980733,0.00016767,2]
[403651776,1769448522321,-184.41117946,0.00016767,2]
[403651777,1769448525042,-171.66569563,0.00016767,2]
[403651778,1769448527170,-172.40537801,0.00016767,2]
[403651779,1769448528695,-179.954532,0.00016767,2]
[403651780,1769448530860,-285.98804385,0.00016767,2]
[403651781,1769448532388,-378.82289302,0.00016767,2]
[403651782,1769448536150,-217.29392139,0.00016767,2]
[403651788,1769448541694,-300.0,0.00016766,2]
[403651789,1769448541722,-186.41474878,0.00016767,2]
[403651790,1769448544377,-256.94891727,0.00016767,2]
[403651791,1769448550067,-189.49383592,0.00016767,2]
[403651792,1769448551545,-413.47485461,0.00016767,2]
[403651793,1769448558468,-243.05108273,0.00016767,2]
[403651794,1769448558986,-10000.0,0.00016767,2]
[403651795,1769448560447,-10000.0,0.00016767,2]
[403651796,1769448560904,-10000.0,0.00016767,2]
[403651797,1769448561332,-7662.72888661,0.00016767,2]
[403651798,1769448561355,-2337.27111339,0.00016778,2]
[403651799,1769448561777,-10000.0,0.00016778,2]
[403651800,1769448562262,-10000.0,0.00016778,2]
[403651801,1769448563006,-10000.0,0.00016778,2]
[403651802,1769448563076,-10000.0,0.00016778,2]
[403651803,1769448563573,-10000.0,0.00016778,2]
[403651804,1769448564095,-10000.0,0.00016778,2]
[403651805,1769448564350,-251.32815818,0.00016778,2]
[403651806,1769448564485,-10000.0,0.00016778,2]
[403651807,1769448565029,-10000.0,0.00016778,2]
[403651808,1769448565510,-10000.0,0.00016778,2]
[403651809,1769448565859,-304.18784332,0.00016778,2]
[403651810,1769448565910,-10000.0,0.00016778,2]
[403651811,1769448566285,-10000.0,0.00016778,2]
[403651812,1769448566750,-10000.0,0.00016778,2]
[403651813,1769448567282,-10000.0,0.00016778,2]
[403651814,1769448567314,-211.592463,0.00016778,2]
[403651815,1769448567680,-10000.0,0.00016778,2]
[403651816,1769448568217,-10000.0,0.00016778,2]
[403651817,1769448568736,-226.36559816,0.00016778,2]
[403651818,1769448568999,-10000.0,0.00016778,2]
[403651819,1769448569392,-10000.0,0.00016778,2]
[403651820,1769448570045,-10000.0,0.00016778,2]
[403651821,1769448570696,-10000.0,0.00016778,2]
[403651822,1769448571196,-10000.0,0.00016778,2]
[403651823,1769448571789,-10000.0,0.00016778,2]
[403651824,1769448572380,-10000.0,0.00016778,2]
[403651825,1769448573433,-10000.0,0.00016778,2]
[403651826,1769448573860,-300.0,0.00016778,2]
[403651827,1769448573889,-10000.0,0.00016778,2]
[403651828,1769448574820,-10000.0,0.00016778,2]
[403651829,1769448575189,-10000.0,0.00016778,2]
[403651830,1769448576978,-10000.0,0.00016778,2]
[403651831,1769448581936,-359.22477413,0.00016778,2]
[403651832,1769448586358,-178.70738696,0.00016678,2]
[403651833,1769448589604,-31.62368792,0.00016678,2]
[403651834,1769448589629,-264.04625303,0.00016778,2]
[403651835,1769448591766,-244.33214218,0.00016778,2]
[403651836,1769448593249,-200.0,0.00016609,2]
[403651837,1769448593274,-4256.0,0.00016778,2]
[403651838,1769448594404,-263.99532567,0.00016778,2]
[403651839,1769448595951,-286.6730619,0.00016778,2]
[403651840,1769448598020,-213.3269381,0.00016778,2]
[403651841,1769448601359,-161.55604627,0.00016777,2]
[403651842,1769448607482,-138.44395373,0.00016777,2]
[403651843,1769448607505,-20.83238292,0.00016777,2]
[403651844,1769448611438,-167.44743681,0.00016777,2]
[403651845,1769448615932,-111.72018027,0.00016777,2]
[403651846,1769448615957,-211.43233727,0.00016777,2]
[403651847,1769448616293,-988.56766273,0.00016777,2]
[403651848,1769448616324,-300.0,0.00016777,2]
[403651849,1769448616357,-550.0,0.00016777,2]
[403651850,1769448616389,-300.0,0.00016777,2]
[403651851,1769448618381,-297.5802169,0.00016778,2]
[403651852,1769448619072,519.96080601,0.00016678,2]
[403651856,1769448621500,2057.19724691,0.00016678,2]
[403651857,1769448622309,-211.16229621,0.00016778,2]
[403651866,1769448631534,-330.14659575,0.00016778,2]
[403651869,1769448631607,-477.97880591,0.00016778,2]
[403651872,1769448631619,-2773.96661148,0.00016778,2]
[403651874,1769448631648,-1794.47750331,0.00016778,2]
[403651875,1769448631660,-1342.64096061,0.00016778,2]
[403651876,1769448631706,-3124.78462949,0.00016778,2]
[403651877,1769448631789,180.78362123,0.00016777,2]
[403651878,1769448631806,-344.81,0.00016778,2]
[403651879,1769448631818,-377.4,0.00016778,2]
[403651880,1769448631830,-2010.45162671,0.00016778,2]
[403651881,1769448631847,-2354.96308394,0.00016778,2]
[403651882,1769448631881,276.90471229,0.00016777,2]
[403651883,1769448631919,500.0,0.00016777,2]
[403651885,1769448632003,-131598.84466915,0.00016778,2]
[403651888,1769448632015,-8448.52054594,0.00016778,2]
[403651890,1769448632027,-1060.92728506,0.00016778,2]
[403651892,1769448632039,-6374.08985714,0.00016778,2]
[403651895,1769448632062,-282.33286881,0.00016778,2]
[403651901,1769448632104,486.89960461,0.00016777,2]
[403651903,1769448632227,-824.83,0.00016778,2]
[403651904,1769448632340,500.0,0.00016777,2]
[403651905,1769448632405,500.0,0.00016777,2]
[403651906,1769448635749,542.71122847,0.00016777,2]
[403651907,1769448635798,158.41745502,0.00016777,2]
[403651908,1769448635821,341.58254498,0.00016777,2]
[403651909,1769448635855,500.0,0.00016777,2]
[403651910,1769448635890,500.0,0.00016777,2]
[403651911,1769448635944,500.0,0.00016777,2]
[403651912,1769448635980,279.37401254,0.00016777,2]
[403651913,1769448636034,500.0,0.00016777,2]
[403651914,1769448636088,500.0,0.00016777,2]
[403651915,1769448636140,500.0,0.00016777,2]
[403651916,1769448636176,500.0,0.00016777,2]
[403651917,1769448636230,500.0,0.00016777,2]
[403651918,1769448636276,500.0,0.00016777,2]
[403651919,1769448636321,500.0,0.00016777,2]
[403651920,1769448636382,309.73098685,0.00016777,2]
[403651921,1769448636433,500.0,0.00016777,2]
[403651922,1769448637088,-293.71251955,0.00016778,2]
[403651926,1769448637704,-358.33485164,0.00016778,2]
[403651927,1769448637763,-1443.45977058,0.00016778,2]
[403651928,1769448637775,-6079.571505,0.00016778,2]
[403651929,1769448637824,-267.0,0.00016778,2]
[403651930,1769448637876,-272.64204215,0.00016778,2]
[403651931,1769448637889,-1053.65427377,0.00016778,2]
[403651932,1769448637901,-6477.90589044,0.00016778,2]
[403651933,1769448637913,-709.32712733,0.00016778,2]
[403651992,1769448638579,-230.81844795,0.00016778,2]
[403652177,1769448640170,-539265.32234412,0.00016778,2]
[403652179,1769448640180,-3399.06685283,0.00016778,2]
[403652181,1769448640190,-578.20924308,0.00016837,2]
[403652183,1769448640200,-519.96080599,0.00016853,2]
[403652185,1769448640209,-440.1763914,0.00016856,2]
[403652187,1769448640218,-200.0,0.00016877,2]
[403652189,1769448640228,-2654.07623977,0.00016877,2]
[403652191,1769448640237,-716.97946142,0.00016877,2]
[403652193,1769448640247,-250.0,0.00016877,2]
[403652195,1769448640257,-250.0,0.00016877,2]
[403652197,1769448640266,-250.0,0.00016877,2]
[403652199,1769448640276,-250.0,0.00016877,2]
[403652201,1769448640285,-250.0,0.00016877,2]
[403652204,1769448640295,-250.0,0.00016877,2]
[403652207,1769448640304,-250.0,0.00016877,2]
[403652209,1769448640313,-250.0,0.00016877,2]
[403652211,1769448640322,-250.0,0.00016877,2]
[403652213,1769448640332,-250.0,0.00016877,2]
[403652216,1769448640341,-250.0,0.00016877,2]
[403652218,1769448640351,-151.0,0.00016877,2]
[403652220,1769448640360,-250.0,0.00016877,2]
[403652222,1769448640369,-250.0,0.00016877,2]
[403652224,1769448640379,-250.0,0.00016877,2]
[403652226,1769448640389,-313.34353873,0.00016877,2]
[403652228,1769448640399,-250.0,0.00016877,2]
[403652230,1769448640408,-151.0,0.00016877,2]
[403652232,1769448640418,-174.61919141,0.00016877,2]
[403652234,1769448640427,-250.0,0.00016877,2]
[403652236,1769448640437,-250.0,0.00016877,2]
[403652238,1769448640446,-250.0,0.00016877,2]
[403652240,1769448640455,-250.0,0.00016877,2]
[403652242,1769448640465,-250.0,0.00016877,2]
[403652244,1769448640474,-250.0,0.00016877,2]
[403652246,1769448640485,-250.0,0.00016877,2]
[403652248,1769448640495,-250.0,0.00016877,2]
[403652250,1769448640505,-250.0,0.00016877,2]
[403652252,1769448640516,-250.0,0.00016877,2]
[403652254,1769448640526,-385.40135603,0.00016877,2]
[403652256,1769448640537,-500.0,0.00016877,2]
[403652258,1769448640546,-500.0,0.00016877,2]
[403652260,1769448640556,-500.0,0.00016877,2]
[403652262,1769448640566,-500.0,0.00016877,2]
[403652264,1769448640576,-500.0,0.00016877,2]
[403652266,1769448640586,-500.0,0.00016877,2]
[403652268,1769448640596,-500.0,0.00016877,2]
[403652270,1769448640606,-223.59947078,0.00016877,2]